fUSD/lending_fUSD_20241017
["ID","MTS","AMOUNT","RATE_DAILY","PERIOD"]
[340394453,1729176633107,-9161.3199998,0.00010786,2]
[340394455,1729176633121,-37231.85107033,0.00010786,2]
[340394456,1729176633131,-1000.0,0.00010786,2]
[340394457,1729176633140,-23604.33346552,0.0001089,2]
[340394458,1729176633152,-6184.2179,0.0001089,2]
[340394459,1729176633163,-7259.22226241,0.00010899,2]
[340394460,1729176633175,-156.9651639,0.000109,2]
[340394461,1729176633187,-2649.1964,0.000109,2]
[340394462,1729176633196,-7500.0,0.000109,2]
[340394463,1729176633206,-171.12828468,0.000109,2]
[340394464,1729176633215,-1670.54394802,0.000109,2]
[340394465,1729176633225,-1473.91313306,0.000109,2]
[340394466,1729176633235,-500.0,0.00010912,2]
[340394467,1729176633244,-170.58,0.00010959,2]
[340394468,1729176633255,-250.84,0.00010959,2]
[340394469,1729176633264,-250.0,0.00010959,2]
[340394470,1729176633273,-499.99,0.00010959,2]
[340394471,1729176633283,-384.64869182,0.00010989,2]
[340394472,1729176633292,-143976.56968027,0.0001099,2]
[340394473,1729176633303,-335.92939992,0.0001099,2]
[340394474,1729176633315,-348.89010204,0.0001099,2]
[340394475,1729176633327,-7986.44544038,0.0001099,2]
[340394476,1729176633339,-2168.33737172,0.0001099,2]
[340394477,1729176633587,-594.99826677,0.0001099,2]
[340394478,1729176633600,-94588.8297389,0.0001099,2]
[340394479,1729176633610,-4290.2182905,0.00010998,2]
[340394480,1729176633620,-848.34785249,0.00010999,2]
[340394481,1729176633630,-500.0,0.00010999,2]
[340394482,1729176633640,-319.52914904,0.00010999,2]
[340394483,1729176633650,-625.0,0.00011,2]
[340394484,1729176633659,-324925.57042522,0.00011,2]
[340394485,1729176633672,-4000.0,0.00011,2]
[340394486,1729176633684,-345.5,0.00011,2]
[340394487,1729176639254,-19434.72573085,0.00011,2]
[340394489,1729176639267,-735.3530768,0.00011,2]
[340394492,1729176639278,-134366.05646336,0.00011,2]
[340394494,1729176639288,-560.27119689,0.00011,2]
[340394495,1729176639300,-328.53229629,0.00011,2]
[340394496,1729176639311,-1334.397,0.00011,2]
[340394497,1729176639322,-35023.76820165,0.00011,2]
[340394499,1729176639334,-17211.26176549,0.00011,2]
[340394500,1729176639345,-28927.12419884,0.00011,2]
[340394501,1729176639356,-793.48923202,0.00011,2]
[340394502,1729176639367,-4103.58594116,0.00011,2]
[340394503,1729176641183,-424.17392625,0.00010999,2]
[340394505,1729176641194,-4791.48124319,0.00011,2]
[340394506,1729176641205,-1338.78,0.00011,2]
[340394507,1729176641217,-18494.1,0.00011,2]
[340394508,1729176641230,-96518.30000944,0.00011,2]
[340394510,1729176641242,-4563.94386225,0.00011,2]
[340394511,1729176641254,-1005.819954,0.00011,2]
[340394512,1729176641266,-13474.59376076,0.00011,2]
[340394513,1729176644101,-2023.27023794,0.00011,2]
[340394516,1729176644113,-2864.9130586,0.00011,2]
[340394519,1729176644126,-3476.5447,0.00011,2]
[340394521,1729176644138,-2428.0,0.00011,2]
[340394524,1729176644150,-5960.69949992,0.00011,2]
[340394528,1729176644162,-681.49907675,0.00011,2]
[340394530,1729176644174,-2320.0,0.00011,2]
[340394533,1729176644189,-7771.04030024,0.00011,2]
[340394534,1729176644200,-1490.79089986,0.00011,2]
[340394535,1729176644212,-772.82854254,0.00011,2]
[340394537,1729176644223,-6655.27794624,0.00011,2]
[340394539,1729176644235,-266.26,0.00011,2]
[340394542,1729176647119,-72913.09117429,0.00011,2]
[340394544,1729176647130,-1004.97915295,0.00011,2]
[340394546,1729176647142,-3369.95,0.00011,2]
[340394549,1729176647154,-738.298,0.00011,2]
[340394551,1729176647167,-30039.13018329,0.00011,2]
[340394556,1729176647179,-264.33999999,0.00011,2]
[340394629,1729176882400,1688.22,0.00010396,2]
[340394630,1729176884055,250.0,0.00010396,2]
[340394631,1729176924333,261.42,0.00010207,2]
[340394632,1729176924559,261.42,0.0001021,2]
[340394633,1729176924802,261.42,0.00010213,2]
[340394634,1729176925095,261.42,0.00010215,2]
[340394635,1729176925523,261.42,0.00010218,2]
[340394636,1729176925955,261.42,0.00010221,2]
[340394637,1729176926191,261.42,0.00010223,2]
[340394638,1729176926394,261.42,0.00010226,2]
[340394639,1729176926613,261.42,0.00010229,2]
[340394640,1729176926863,261.42,0.00010232,2]
[340394641,1729176927124,261.42,0.00010234,2]
[340394642,1729176927346,261.42,0.00010237,2]
[340394643,1729176928020,261.42,0.0001024,2]
[340394644,1729176928108,261.42,0.00010242,2]
[340394645,1729176928166,261.42,0.00010245,2]
[340394646,1729176928906,261.42,0.00010248,2]
[340394647,1729176929115,261.42,0.0001025,2]
[340394648,1729176929199,250.0,0.00010207,2]
[340394649,1729176929344,261.42,0.00010253,2]
[340394650,1729176929600,261.42,0.00010256,2]
[340394651,1729176929843,261.42,0.00010258,2]
[340394652,1729176987210,1000.0,0.00010251,2]
[340394666,1729177073786,800.0,0.00010306,2]
[340394668,1729177103571,455.13,0.00025,120]
[340394669,1729177108830,395.15,0.0001029,2]
[340394670,1729177109290,200.83,0.0001029,2]
[340394671,1729177130304,414.71,8.277e-05,2]
[340394672,1729177142573,200.0,0.00010195,2]
[340394673,1729177148327,7000.0,0.00010171,2]
[340394676,1729177196580,1160.95,0.0001022,2]
[340394677,1729177273167,18451.19,0.00010195,2]
[340394679,1729177342223,897.3,0.00010169,2]
[340394680,1729177411741,250.0,0.00010304,2]
[340394681,1729177498407,250.0,0.0001029,2]
[340394682,1729177580021,200.0,0.00010177,2]
[340394691,1729177631102,-414.71,0.00010541,2]
[340394692,1729177631126,-3186.93741995,0.000106,2]
[340394693,1729177721720,261.0,0.00010177,2]
[340394694,1729177726836,392.48,8.253e-05,2]
[340394696,1729177832856,-392.48,0.00010517,2]
[340394699,1729177832867,-821.174,0.00010878,2]
[340394702,1729177832877,-1372.2,0.00010888,2]
[340394704,1729177832888,-150.0,0.00010898,2]
[340394707,1729177832899,-412.60561762,0.00010899,2]
[340394709,1729177832910,-263.412,0.00010899,2]
[340394711,1729177832921,-170.679,0.00010899,2]
[340394713,1729177832932,-13175.93917476,0.00010899,2]
[340394715,1729177832943,-9480.033,0.000109,2]
[340394717,1729177832952,-157.61302999,0.000109,2]
[340394720,1729177832963,-9471.7638,0.000109,2]
[340394722,1729177832973,-515.2894,0.000109,2]
[340394724,1729177832983,-7500.0,0.000109,2]
[340394725,1729177832992,-183.45224434,0.000109,2]
[340394727,1729177833002,-1112.30203453,0.000109,2]
[340394729,1729177833011,-5886.0,0.00010918,2]
[340394730,1729177833021,-1150.0,0.00010918,2]
[340394732,1729177833031,-13534.0,0.00010918,2]
[340394734,1729177833040,-150.664,0.00010918,2]
[340394735,1729177833049,-1084.0,0.00010918,2]
[340394737,1729177833059,-160.24,0.00010959,2]
[340394738,1729177833068,-795.53,0.00010959,2]
[340394740,1729177833079,-1500.0,0.00010959,2]
[340394742,1729177833089,-500.0,0.00010959,2]
[340394743,1729177833099,-250.0,0.00010959,2]
[340394745,1729177833108,-150.0,0.00010959,2]
[340394747,1729177833118,-2000.0,0.00010959,2]
[340394748,1729177833128,-150.99,0.00010959,2]
[340394749,1729177833137,-349.54,0.00010959,2]
[340394750,1729177833147,-8084.33,0.00010959,2]
[340394751,1729177833156,-856.68,0.00010959,2]
[340394752,1729177833166,-150.99,0.00010973,2]
[340394753,1729177833176,-5651.01,0.00010973,2]
[340394754,1729177833186,-11581.88269911,0.0001099,2]
[340394755,1729177833202,-2028.79395895,0.0001099,2]
[340394756,1729177833213,-1938.3381967,0.0001099,2]
[340394757,1729177833888,-1563.1042954,0.0001099,2]
[340394760,1729177833900,-93386.16903842,0.0001099,2]
[340394762,1729177833909,-499.99,0.0001099,2]
[340394764,1729177833919,-177.66837529,0.0001099,2]
[340394766,1729177833928,-11733.07225024,0.00010998,2]
[340394768,1729177833941,-65819.15584356,0.00010998,2]
[340394770,1729177833950,-999.99,0.00010999,2]
[340394772,1729177833960,-212.08696312,0.00010999,2]
[340394774,1729177833970,-500.0,0.00010999,2]
[340394776,1729177833980,-589.0,0.00011,2]
[340394778,1729177833989,-65439.85086582,0.00011,3]
[340394780,1729177833999,-20944.71632705,0.00011,2]
[340394782,1729177834011,-11658.02722768,0.00011,2]
[340394784,1729177834023,-15608.01639483,0.00011,2]
[340394786,1729177834038,-1819.03282774,0.00011,2]
[340394802,1729177839595,-212.08696312,0.00010999,2]
[340394804,1729177839605,-525.0,0.00011,2]
[340394806,1729177839615,-1634.94562063,0.00011,2]
[340394808,1729177839627,-127011.64508232,0.00011,2]
[340394809,1729177839638,-917.0652,0.00011,2]
[340394810,1729177839648,-314.863673,0.00011,2]
[340394811,1729177839659,-685885.52850303,0.00011,2]
[340394812,1729177839669,-705860.93528562,0.00011,2]
[340394813,1729177839680,-1171784.43419914,0.00011,2]
[340394814,1729177839692,-73253.7415728,0.00011,2]
[340394815,1729177839701,-2000.0,0.00011,2]
[340394816,1729177839711,-200.0,0.00011,2]
[340394817,1729177839720,-13176.5515506,0.00011006,2]
[340394818,1729177839730,-164711.0,0.00011014,2]
[340394819,1729177839739,-788.0,0.00011014,2]
[340394820,1729177839748,-159.46488105,0.00011073,2]
[340394821,1729177839757,-500.0,0.00011073,2]
[340394822,1729177839767,-500.0,0.00011073,2]
[340394823,1729177839777,-153.0,0.00011089,2]
[340394824,1729177839786,-150.0,0.00011089,2]
[340394825,1729177839795,-170.124,0.00011089,2]
[340394826,1729177839804,-150.0,0.00011089,2]
[340394827,1729177839814,-150.081,0.00011089,2]
[340394828,1729177839823,-560.273,0.00011089,2]
[340394829,1729177839832,-812.0,0.00011089,2]
[340394830,1729177839842,-1292.0,0.00011089,2]
[340394831,1729177839852,-449.054,0.00011089,2]
[340394832,1729177839861,-555.0,0.00011089,2]
[340394833,1729177839871,-935.0,0.00011089,2]
[340394834,1729177839880,-278.439,0.00011089,2]
[340394835,1729177839889,-208.672,0.00011089,2]
[340394836,1729177839898,-3357.0,0.00011089,2]
[340394837,1729177839908,-1911.256,0.00011089,2]
[340394838,1729177839917,-150.0,0.000111,2]
[340394839,1729177839927,-429.75,0.000111,2]
[340394840,1729177839936,-1069.24,0.000111,2]
[340394841,1729177839946,-150.0,0.000111,2]
[340394842,1729177839956,-150.0,0.000111,2]
[340394843,1729177839965,-486.45,0.000111,2]
[340394844,1729177839975,-429.75,0.000111,2]
[340394845,1729177839984,-150.0,0.000111,2]
[340394846,1729177839994,-150.0,0.000111,2]
[340394847,1729177840004,-150.0,0.000111,2]
[340394848,1729177840013,-359.33,0.000111,2]
[340394849,1729177840022,-429.75,0.000111,2]
[340394850,1729177840032,-150.0,0.000111,2]
[340394851,1729177840041,-535.32,0.000111,2]
[340394852,1729177840051,-150.0,0.000111,2]
[340394853,1729177840060,-359.33,0.000111,2]
[340394854,1729177840069,-150.0,0.000111,2]
[340394855,1729177840078,-535.32,0.000111,2]
[340394856,1729177840088,-535.32,0.000111,2]
[340394857,1729177840098,-359.33,0.000111,2]
[340394858,1729177840107,-150.0,0.000111,2]
[340394859,1729177840115,-756.07,0.000111,2]
[340394860,1729177840125,-516.09,0.000111,2]
[340394861,1729177840135,-245.85,0.000111,2]
[340394862,1729177840145,-150.0,0.000111,2]
[340394863,1729177840154,-269.84,0.000111,2]
[340394864,1729177840163,-429.75,0.000111,2]
[340394865,1729177840173,-429.75,0.000111,2]
[340394866,1729177840182,-359.33,0.000111,2]
[340394867,1729177840191,-300.0,0.000111,2]
[340394868,1729177840200,-150.0,0.000111,2]
[340394869,1729177840210,-150.0,0.000111,2]
[340394870,1729177840219,-300.0,0.000111,2]
[340394871,1729177840228,-150.0,0.000111,2]
[340394872,1729177840237,-756.07,0.000111,2]
[340394873,1729177840247,-424.27,0.000111,2]
[340394874,1729177840256,-150.0,0.000111,2]
[340394875,1729177840265,-535.32,0.000111,2]
[340394876,1729177840275,-449.65,0.000111,2]
[340394877,1729177840284,-535.32,0.000111,2]
[340394878,1729177840293,-150.0,0.000111,2]
[340394879,1729177840303,-150.0,0.000111,2]
[340394880,1729177840312,-359.33,0.000111,2]
[340394881,1729177840321,-150.0,0.000111,2]
[340394882,1729177840331,-150.0,0.000111,2]
[340394883,1729177840341,-535.32,0.000111,2]
[340394884,1729177840351,-150.0,0.000111,2]
[340394885,1729177840361,-753.56,0.000111,2]
[340394886,1729177840371,-424.27,0.000111,2]
[340394887,1729177840380,-429.75,0.000111,2]
[340394888,1729177840389,-150.0,0.000111,2]
[340394889,1729177840399,-357.62,0.000111,2]
[340394890,1729177840408,-150.0,0.000111,2]
[340394891,1729177840419,-429.75,0.000111,2]
[340394892,1729177840428,-300.0,0.000111,2]
[340394893,1729177840438,-535.32,0.000111,2]
[340394894,1729177840447,-150.0,0.000111,2]
[340394895,1729177840456,-359.33,0.000111,2]
[340394896,1729177840466,-424.27,0.000111,2]
[340394897,1729177840475,-150.0,0.000111,2]
[340394898,1729177840484,-359.33,0.000111,2]
[340394899,1729177840493,-359.33,0.000111,2]
[340394900,1729177840502,-150.0,0.000111,2]
[340394901,1729177840511,-718.57,0.000111,2]
[340394902,1729177840520,-535.32,0.000111,2]
[340394903,1729177840529,-859.38,0.000111,2]
[340394904,1729177840538,-150.0,0.000111,2]
[340394905,1729177840547,-150.0,0.000111,2]
[340394906,1729177840556,-429.75,0.000111,2]
[340394907,1729177840566,-150.0,0.000111,2]
[340394908,1729177840574,-150.0,0.000111,2]
[340394909,1729177840583,-429.07,0.000111,2]
[340394910,1729177840598,-150.0,0.000111,2]
[340394911,1729177840607,-429.75,0.000111,2]
[340394912,1729177840616,-150.0,0.000111,2]
[340394913,1729177840625,-359.33,0.000111,2]
[340394914,1729177840634,-150.0,0.000111,2]
[340394915,1729177840643,-535.32,0.000111,2]
[340394916,1729177840652,-429.75,0.000111,2]
[340394917,1729177840660,-390.82,0.000111,2]
[340394918,1729177840669,-535.32,0.000111,2]
[340394920,1729177840678,-150.0,0.000111,2]
[340394921,1729177840688,-429.75,0.000111,2]
[340394923,1729177840700,-150.0,0.000111,2]
[340394924,1729177840709,-359.33,0.000111,2]
[340394925,1729177840718,-2000.0,0.0001111,2]
[340394926,1729177840727,-200.0,0.0001111,2]
[340394927,1729177840737,-429.75,0.000112,2]
[340394928,1729177840746,-635.88,0.000112,2]
[340394929,1729177840755,-359.33,0.000112,2]
[340394930,1729177840765,-150.0,0.000112,2]
[340394931,1729177840775,-150.0,0.000112,2]
[340394932,1729177840784,-150.0,0.000112,2]
[340394933,1729177840793,-150.0,0.000112,2]
[340394934,1729177840802,-429.75,0.000112,2]
[340394935,1729177840811,-150.0,0.000112,2]
[340394936,1729177840821,-535.32,0.000112,2]
[340394937,1729177840830,-359.33,0.000112,2]
[340394938,1729177840840,-535.32,0.000112,2]
[340394939,1729177840849,-150.0,0.000112,2]
[340394940,1729177840858,-535.32,0.000112,2]
[340394941,1729177840868,-429.75,0.000112,2]
[340394942,1729177840878,-359.33,0.000112,2]
[340394943,1729177840887,-429.75,0.000112,2]
[340394944,1729177840897,-359.33,0.000112,2]
[340394945,1729177840906,-150.0,0.000112,2]
[340394946,1729177840915,-150.0,0.000112,2]
[340394947,1729177840925,-300.0,0.000112,2]
[340394948,1729177840934,-1070.24,0.000112,2]
[340394949,1729177840943,-535.32,0.000112,2]
[340394950,1729177840952,-359.33,0.000112,2]
[340394951,1729177840961,-150.0,0.000112,2]
[340394952,1729177840970,-150.0,0.000112,2]
[340394953,1729177840980,-429.75,0.000112,2]
[340394954,1729177840989,-429.75,0.000112,2]
[340394955,1729177840999,-359.33,0.000112,2]
[340394956,1729177841008,-150.0,0.000112,2]
[340394957,1729177841018,-535.32,0.000112,2]
[340394958,1729177841028,-150.0,0.000112,2]
[340394959,1729177841037,-2000.0,0.00011221,2]
[340394960,1729177841047,-200.0,0.00011221,2]
[340394961,1729177841056,-2000.0,0.00011333,2]
[340394962,1729177841065,-200.0,0.00011333,2]
[340394963,1729177841075,-200.0,0.00011447,2]
[340394964,1729177841084,-261.0,0.00011449,2]
[340394965,1729177841094,-200.0,0.00011449,2]
[340394966,1729177841103,-421.1641812,0.00011465,2]
[340394967,1729177841113,-795.53,0.00011507,2]
[340394968,1729177841124,-2751.0,0.00011507,2]
[340394969,1729177841133,-1000.0,0.00011532,2]
[340394970,1729177841143,-800.0,0.00011594,2]
[340394971,1729177841152,-160.21210206,0.000119,2]
[340394972,1729177841161,-195.0,0.00011944,2]
[340394973,1729177841171,-503.33012691,0.0001195,2]
[340394974,1729177841180,-600.0,0.00012,2]
[340394975,1729177841189,-500.0,0.00012,2]
[340394976,1729177841199,-795.53,0.00012055,2]
[340394977,1729177841209,-281.143,0.00012266,2]
[340394978,1729177841218,-281.143,0.00012266,2]
[340394979,1729177841227,-281.143,0.00012266,2]
[340394980,1729177841236,-281.143,0.00012266,2]
[340394981,1729177841245,-281.143,0.00012266,2]
[340394982,1729177841254,-281.143,0.00012266,2]
[340394983,1729177841263,-281.143,0.00012266,2]
[340394984,1729177841272,-281.143,0.00012266,2]
[340394985,1729177841281,-281.143,0.00012266,2]
[340394986,1729177841290,-281.143,0.00012266,2]
[340394987,1729177841299,-500.0,0.000123,2]
[340394988,1729177841308,-442.434212,0.00012329,2]
[340394989,1729177841316,-442.434212,0.00012329,2]
[340394990,1729177841325,-1054.1177316,0.00012442,2]
[340394991,1729177841334,-1000.0,0.00012442,2]
[340394992,1729177841345,-167.26,0.00012445,2]
[340394993,1729177841354,-167.24,0.00012445,2]
[340394994,1729177841363,-154.59,0.00012445,2]
[340394995,1729177841372,-13175.93917475,0.00012454,2]
[340394996,1729177841382,-795.53,0.00012603,2]
[340394997,1729177841391,-261.0,0.00012721,2]
[340394998,1729177841400,-200.0,0.00012721,2]
[340394999,1729177841409,-392.48,0.0001278,2]
[340395000,1729177841419,-1000.0,0.00012814,2]
[340395001,1729177841428,-154.59,0.00012855,2]
[340395002,1729177841437,-800.0,0.00012882,2]
[340395003,1729177841447,-3859.8532272,0.00012893,2]
[340395004,1729177841460,-4364.6767728,0.00012893,2]
[340395005,1729177841470,-25259.49,0.00012893,2]
[340395006,1729177841478,-6705.63,0.00012893,2]
[340395007,1729177841487,-153.974255,0.00012958,2]
[340395008,1729177841496,-175.304973,0.00012958,2]
[340395009,1729177841506,-150.14,0.00012959,2]
[340395010,1729177841515,-150.0,0.00012959,2]
[340395011,1729177841524,-150.0,0.00012959,2]
[340395012,1729177841533,-795.53,0.00013151,2]
[340395013,1729177841542,-157.61302995,0.00013233,2]
[340395014,1729177841551,-154.59,0.00013266,2]
[340395015,1729177841561,-1000.0,0.0001337,2]
[340395016,1729177841570,-153.974255,0.00013606,2]
[340395017,1729177841579,-175.304973,0.00013606,2]
[340395018,1729177841590,-505.93082385,0.0001367,2]
[340395019,1729177841599,-154.59,0.00013677,2]
[340395020,1729177841608,-800.0,0.00013699,2]
[340395021,1729177841617,-800.0,0.00013699,2]
[340395022,1729177841627,-800.0,0.00013699,2]
[340395023,1729177841637,-800.0,0.00013699,2]
[340395024,1729177841646,-800.0,0.00013699,2]
[340395025,1729177841655,-800.0,0.00013699,2]
[340395026,1729177841665,-653.39208503,0.00013699,2]
[340395027,1729177841680,-146.60791497,0.00013699,2]
[340395028,1729177841692,-800.0,0.00013699,2]
[340395029,1729177841702,-800.0,0.00013699,2]
[340395030,1729177841711,-800.0,0.00013699,2]
[340395031,1729177841720,-800.0,0.00013699,2]
[340395032,1729177841729,-800.0,0.00013699,2]
[340395033,1729177841738,-800.0,0.00013699,2]
[340395034,1729177841748,-800.0,0.00013699,2]
[340395035,1729177841758,-800.0,0.00013699,2]
[340395036,1729177841767,-800.0,0.00013699,2]
[340395037,1729177841777,-800.0,0.00013699,2]
[340395038,1729177841787,-800.0,0.00013699,2]
[340395039,1729177841796,-800.0,0.00013699,2]
[340395040,1729177841806,-800.0,0.00013699,2]
[340395041,1729177841816,-800.0,0.00013699,2]
[340395042,1729177841825,-11215.1,0.00013699,2]
[340395043,1729177841834,-800.0,0.00013699,2]
[340395044,1729177841844,-800.0,0.00013699,2]
[340395045,1729177841854,-800.0,0.00013699,2]
[340395046,1729177841863,-800.0,0.00013699,2]
[340395047,1729177842068,-500.0,0.00013699,2]
[340395048,1729177842084,-800.0,0.00013699,2]
[340395049,1729177842096,-200.0,0.00013699,2]
[340395050,1729177842105,-800.0,0.00013699,2]
[340395051,1729177842114,-800.0,0.00013699,2]
[340395052,1729177842124,-800.0,0.00013699,2]
[340395053,1729177842134,-194.22012778,0.000137,2]
[340395054,1729177842145,-713.97987222,0.000137,2]
[340395055,1729177842154,-4007.18,0.000137,2]
[340395056,1729177842163,-4007.18,0.000137,2]
[340395057,1729177842172,-4007.18,0.000137,2]
[340395058,1729177842182,-4007.18,0.000137,2]
[340395059,1729177842191,-4007.18,0.000137,2]
[340395060,1729177842200,-334.15333962,0.00013773,2]
[340395061,1729177842209,-151.0,0.000138,2]
[340395062,1729177842218,-151.0,0.000138,2]
[340395063,1729177842231,-151.0,0.000138,2]
[340395064,1729177842240,-151.0,0.000138,2]
[340395065,1729177842249,-87034.5565229,0.000138,3]
[340395066,1729177842260,-130822.08551998,0.000138,3]
[340395067,1729177842501,-289.6333911,0.000138,3]
[340395068,1729177842512,-300.97985422,0.000138,3]
[340395069,1729177842523,-23000.0,0.000138,3]
[340395070,1729177842535,-3303.44873815,0.000138,3]
[340395071,1729177842546,-1525.9999996,0.000138,3]
[340395072,1729177842557,-792.81019852,0.000138,3]
[340395075,1729177844402,-2429.17763903,0.000138,3]
[340395078,1729177844418,-136985.0011385,0.000138,3]
[340395081,1729177844428,-442.434212,0.000138,2]
[340395083,1729177844439,-442.434212,0.000138,2]
[340395085,1729177844450,-809.0,0.00013878,2]
[340395087,1729177844462,-151.0,0.000139,2]
[340395089,1729177844473,-10000.0,0.000139,2]
[340395091,1729177844483,-103252.846809,0.000139,3]
[340395092,1729177844495,-442.434212,0.000139,2]
[340395093,1729177844506,-442.434212,0.000139,2]
[340395094,1729177844516,-5886.0,0.00013918,2]
[340395095,1729177844526,-1150.0,0.00013918,2]
[340395096,1729177844537,-13534.0,0.00013918,2]
[340395097,1729177844548,-150.0,0.00013918,2]
[340395098,1729177844558,-541.455,0.00013918,2]
[340395099,1729177844568,-261.0,0.00013993,2]
[340395100,1729177844579,-200.0,0.00013994,2]
[340395101,1729177844591,-650.0,0.00014,2]
[340395102,1729177844600,-13175.93917475,0.0001401,2]
[340395103,1729177844610,-154.59,0.00014088,2]
[340395104,1729177844619,-150.0,0.00014089,2]
[340395105,1729177844629,-150.0,0.00014089,2]
[340395106,1729177844638,-150.0,0.00014089,2]
[340395107,1729177844648,-560.0,0.00014089,2]
[340395108,1729177844659,-454.792,0.00014089,2]
[340395109,1729177844670,-1245.0,0.00014089,2]
[340395110,1729177844680,-449.0,0.00014089,2]
[340395111,1729177844690,-555.0,0.00014089,2]
[340395112,1729177844704,-935.0,0.00014089,2]
[340395113,1729177844713,-150.0,0.00014089,2]
[340395114,1729177844724,-3357.0,0.00014089,2]
[340395115,1729177844734,-1909.0,0.00014089,2]
[340395116,1729177844746,-1000.0,0.00014095,2]
[340395117,1729177844757,-800.0,0.0001417,2]
[340395118,1729177844766,-897.3,0.00014237,2]
[340395119,1729177844778,-759.11713801,0.00014446,2]
[340395120,1729177844787,-154.59,0.00014499,2]
[340395121,1729177844798,-200.000001,0.000145,2]
[340395122,1729177844807,-24953.63189069,0.00014503,2]
[340395123,1729177844819,-20018.2983,0.00014503,2]
[340395124,1729177844831,-38647.99016341,0.00014503,2]
[340395125,1729177844841,-27768.82878891,0.00014513,2]
[340395126,1729177844858,-78258.03014461,0.00014513,2]
[340395127,1729177844869,-158.0934249,0.000147,2]
[340395128,1729177844881,-389.12,0.000147,2]
[340395129,1729177844891,-11931.46191225,0.0001472,2]
[340395130,1729177844900,-416.0,0.00015,2]
[340395131,1729177844910,-416.0,0.00015,2]
[340395132,1729177844920,-5195.0,0.00015,2]
[340395133,1729177844931,-1425.0,0.00015,2]
[340395134,1729177844942,-600.0,0.00015,2]
[340395135,1729177844952,-600.0,0.00015,2]
[340395136,1729177844962,-600.0,0.00015,2]
[340395137,1729177844972,-600.0,0.00015,2]
[340395138,1729177844981,-600.0,0.00015,2]
[340395139,1729177844992,-600.0,0.00015,2]
[340395140,1729177845002,-600.0,0.00015,2]
[340395141,1729177845012,-600.0,0.00015,2]
[340395142,1729177845022,-600.0,0.00015,2]
[340395143,1729177845032,-660.33199655,0.00015,2]
[340395144,1729177845042,-392.48,0.00015044,2]
[340395145,1729177845052,-300.0,0.00015068,2]
[340395146,1729177845062,-600.0,0.000152,2]
[340395147,1729177845073,-600.0,0.000152,2]
[340395148,1729177845084,-600.0,0.000152,2]
[340395149,1729177845096,-600.0,0.000152,2]
[340395150,1729177845106,-600.0,0.000152,2]
[340395151,1729177845115,-600.0,0.000152,2]
[340395152,1729177845126,-600.0,0.000152,2]
[340395153,1729177845136,-600.0,0.000152,2]
[340395154,1729177845147,-600.0,0.000152,2]
[340395155,1729177845158,-600.0,0.000152,2]